bitfinex-derivatives/quotes_ETHF0:USTF0_20220103
["timestamp","ask_amount","ask_price","bid_price","bid_amount"]
[1641194901468,1.73969689,3801.1,3800.9,6.14492497]
[1641194901868,1.73969689,3801.1,3800.9,0.88304697]
[1641194902069,1.73969689,3801.1,3800.8,0.88304697]
[1641194902269,1.73969689,3801.1,3800.9,0.229991]
[1641194902869,1.73969689,3801.1,3800.8,0.88304697]
[1641194903069,0.55886084,3801.1,3800.9,0.88304697]
[1641194906474,0.55886084,3801.1,3801.0,0.229991]
[1641194906675,0.55886084,3801.1,3800.9,0.88304697]
[1641194907675,0.55886084,3801.1,3800.9,1.11303797]
[1641194908681,0.55886084,3801.1,3800.9,0.88304697]
[1641194909878,0.55886084,3801.1,3801.0,0.229991]
[1641194910077,0.55886084,3801.1,3801.0,0.5969]
[1641194911581,0.55886084,3801.1,3801.0,1.16175119]
[1641194911781,0.55886084,3801.1,3801.0,1.39174219]
[1641194912281,0.55886084,3801.1,3801.0,1.16175119]
[1641194913283,0.55886084,3801.1,3801.0,1.39174219]
[1641194913684,0.55886084,3801.1,3801.0,1.16175119]
[1641194914182,0.55886084,3801.1,3801.0,1.39174219]
[1641194914783,0.55886084,3801.1,3801.0,1.16175119]
[1641194915185,0.55886084,3801.1,3801.0,1.39174219]
[1641194915784,0.55886084,3801.1,3801.0,1.16175119]
[1641194916690,1.18083605,3801.2,3801.0,1.16175119]
[1641194916888,3.18562605,3801.2,3801.0,1.16175119]
[1641194917088,3.18562605,3801.2,3801.1,0.56485119]
[1641194917891,3.18562605,3801.2,3801.0,0.56485119]
[1641194918088,3.18562605,3801.2,3801.1,0.56485119]
[1641194918388,3.74448689,3801.2,3801.1,0.56485119]
[1641194918690,3.74448689,3801.2,3801.0,0.56485119]
[1641194918889,3.74448689,3801.2,3801.1,0.56485119]
[1641194919689,3.74448689,3801.2,3801.0,0.56485119]
[1641194919889,2.56365084,3801.2,3801.1,1.44789816]
[1641194921493,4.03772395,3801.2,3801.1,1.44789816]
[1641194922393,4.03772395,3801.2,3801.1,1.67788916]
[1641194923493,4.03772395,3801.2,3801.1,1.44789816]
[1641194925998,2.56365084,3801.2,3801.1,1.44789816]
[1641194927501,4.03772395,3801.2,3801.1,1.44789816]
[1641194933511,4.03772395,3801.2,3801.1,1.67788916]
[1641194933911,4.03772395,3801.2,3801.1,1.44789816]
[1641194934112,4.03772395,3801.2,3801.1,1.67788916]
[1641194934312,4.03772395,3801.2,3801.1,1.44789816]
[1641194935213,2.56365084,3801.2,3801.1,0.56485119]
[1641194935916,2.56365084,3801.2,3801.0,0.56485119]
[1641194936115,2.56365084,3801.2,3801.1,0.229991]
[1641194936315,2.56365084,3801.2,3801.0,0.56485119]
[1641194936515,0.55886084,3801.2,3801.0,5.52132235]
[1641194936916,0.55886084,3801.2,3801.1,0.79484219]
[1641194937817,2.03293395,3801.5,3801.1,0.79484219]
[1641194938019,1.19182342,3801.2,3801.1,1.97217503]
[1641194938617,1.19182342,3801.2,3801.1,0.79484219]
[1641194938819,1.19182342,3801.3,3801.1,0.79484219]
[1641194941019,1.19182342,3801.3,3801.2,1.18809904]
[1641194941219,1.19182342,3801.4,3801.2,1.18809904]
[1641194941618,1.19182342,3801.4,3801.3,0.229991]
[1641194941822,1.19182342,3801.4,3801.3,0.56485119]
[1641194942220,0.55886084,3801.5,3801.3,0.56485119]
[1641194942822,1.47407311,3801.6,3801.3,1.34274219]
[1641194943021,2.93589395,3802.8,3801.5,2.81401555]
[1641194943223,2.93589395,3802.8,3802.7,2.00479]
[1641194943424,2.93589395,3802.8,3802.7,2.834246]
[1641194943625,2.93589395,3802.8,3802.7,3.064237]
[1641194943823,24.57561934,3803.6,3802.7,3.064237]
[1641194944222,3.56243023,3803.0,3802.7,3.064237]
[1641194944422,20.1534,3803.6,3802.7,3.064237]
[1641194944622,5.56722023,3803.9,3802.7,3.064237]
[1641194945424,2.00479,3803.9,3802.7,3.064237]
[1641194945825,2.00479,3803.9,3803.0,0.88907884]
[1641194947432,2.00479,3803.9,3802.7,2.834246]
[1641194952743,2.00479,3803.9,3802.8,0.78887625]
[1641194952944,2.00479,3803.9,3802.8,2.28887625]
[1641194953349,2.00479,3803.9,3803.2,0.78879112]
[1641194953549,20.0984,3804.5,3803.4,2.00479]
[1641194957155,20.0984,3804.5,3803.6,0.78872316]
[1641194957353,20.0984,3804.5,3803.6,1.49712316]
[1641194967466,20.0984,3804.5,3804.0,4.99569957]
[1641194967666,2.00479,3804.6,3804.1,0.229991]
[1641194972776,2.00479,3804.6,3804.0,4.99569957]
[1641194972977,2.55889,3804.6,3804.0,4.99569957]
[1641194978485,2.00479,3804.6,3804.0,4.99569957]
[1641194980088,2.00479,3804.6,3804.3,0.78856765]
[1641194980287,2.00479,3804.6,3804.4,0.229991]
[1641194980489,0.88752631,3805.6,3804.5,0.122356]
[1641194980689,0.88752631,3805.6,3804.5,0.825356]
[1641194982390,2.00479,3805.6,3804.7,2.00479]
[1641194983390,0.88752631,3805.4,3804.7,2.00479]
[1641194987494,0.88752631,3805.3,3804.7,2.00479]
[1641194987893,0.88752631,3805.3,3804.8,0.78846533]
[1641194989195,0.88752631,3805.4,3804.8,0.78846533]
[1641194990498,0.88752631,3805.3,3804.8,0.78846533]
[1641194994301,1.01568331,3805.3,3804.8,0.78846533]
[1641194994502,1.01568331,3805.3,3804.2,0.94631865]
[1641194995501,1.4999,3805.2,3804.2,0.94631865]
[1641194995703,0.88752631,3804.9,3804.2,0.94631865]
[1641194996502,2.89231631,3804.9,3804.2,0.94631865]
[1641194996703,0.88752631,3804.8,3804.2,0.94631865]
[1641194998205,0.88752631,3804.7,3804.2,0.94631865]
[1641195000109,0.88752631,3804.6,3804.2,0.94631865]
[1641195000306,0.128157,3804.5,3804.2,0.94631865]
[1641195002810,0.128157,3804.5,3804.3,0.229991]
[1641195003408,0.88752631,3804.6,3804.3,0.229991]
[1641195004516,0.88752631,3804.6,3804.2,0.94631865]
[1641195005615,0.68659084,3804.8,3804.2,0.94631865]
[1641195005816,1.47940034,3804.5,3804.2,1.83539749]
[1641195006018,1.47940034,3804.5,3804.3,0.229991]
[1641195006417,1.47940034,3804.5,3804.2,1.83539749]
[1641195007519,1.47940034,3804.5,3804.3,0.229991]
[1641195007720,1.47940034,3804.4,3804.3,0.229991]
[1641195007923,1.47940034,3804.4,3804.2,1.83539749]
[1641195008319,1.47940034,3804.4,3804.3,0.229991]
[1641195008519,1.47940034,3804.4,3804.2,1.83539749]
[1641195008719,1.47940034,3804.5,3804.3,0.88907884]
[1641195010121,1.47940034,3804.5,3804.4,0.229991]
[1641195010720,1.47940034,3804.5,3804.3,0.88907884]
[1641195011724,1.47940034,3804.5,3804.3,1.11906984]
[1641195012122,1.47940034,3804.5,3804.3,0.88907884]
[1641195014726,1.47940034,3804.5,3804.4,0.229991]
[1641195015629,1.47940034,3804.5,3804.3,0.88907884]
[1641195015829,1.47940034,3804.5,3804.3,1.11906984]
[1641195016029,1.47940034,3804.5,3804.3,0.88907884]
[1641195016229,2.12270034,3804.5,3804.3,0.88907884]
[1641195017932,0.6433,3804.5,3804.3,0.88907884]
[1641195018137,0.55843384,3804.4,3804.0,2.07451729]
[1641195018334,0.55843384,3804.4,3804.0,0.88907884]
[1641195019435,1.48824109,3804.3,3804.0,0.88907884]
[1641195019635,1.48824109,3804.3,3804.1,0.229991]
[1641195020035,1.48824109,3804.2,3804.1,0.229991]
[1641195021138,1.48824109,3804.3,3804.1,0.229991]
[1641195021937,1.48824109,3804.4,3804.1,0.88907884]
[1641195023840,1.48824109,3804.4,3804.2,0.229991]
[1641195025642,1.48824109,3804.4,3804.1,0.88907884]
[1641195025845,1.48824109,3804.4,3804.2,0.229991]
[1641195026444,1.48824109,3804.4,3804.1,0.88907884]
[1641195027544,1.48824109,3804.4,3804.2,0.229991]
[1641195028147,1.48824109,3804.4,3804.1,0.88907884]
[1641195028946,1.48824109,3804.4,3804.2,0.229991]
[1641195029246,1.48824109,3804.4,3804.1,0.88907884]
[1641195031751,2.30154109,3804.4,3804.1,0.88907884]
[1641195032552,0.55843384,3804.3,3804.1,0.88907884]
[1641195032953,0.55843384,3804.3,3804.1,1.11906984]
[1641195034154,0.55843384,3804.3,3804.1,0.88907884]
[1641195034654,1.48824109,3804.4,3804.1,0.88907884]
[1641195035956,1.48824109,3804.4,3804.2,0.229991]
[1641195036558,1.48824109,3804.4,3804.1,0.88907884]
[1641195036957,1.48824109,3804.4,3804.2,0.229991]
[1641195037461,1.48824109,3804.5,3804.2,1.11906984]
[1641195037658,1.48824109,3804.5,3804.2,0.88907884]
[1641195040360,0.55843384,3804.7,3804.2,0.88907884]
[1641195040361,1.48824109,3804.4,3804.2,0.88907884]
[1641195041663,1.48824109,3804.5,3804.2,0.88907884]
[1641195044167,1.48824109,3804.5,3804.3,0.229991]
[1641195044665,1.48824109,3804.4,3804.2,0.88907884]
[1641195045267,1.48824109,3804.5,3804.2,0.88907884]
[1641195045869,1.48824109,3804.5,3804.2,2.89386884]
[1641195047871,1.48824109,3804.5,3804.3,0.229991]
[1641195048271,1.48824109,3804.5,3804.2,2.89386884]
[1641195049474,1.48824109,3804.5,3804.3,0.229991]
[1641195051679,1.48824109,3804.5,3804.3,1.11906984]
[1641195052580,1.48824109,3804.5,3804.2,2.89386884]
[1641195052979,1.48824109,3804.5,3804.3,0.229991]
[1641195054482,1.48824109,3804.5,3804.2,2.89386884]
[1641195054685,1.48824109,3804.5,3804.3,1.11906984]
[1641195056284,1.48824109,3804.5,3804.4,0.56204725]
[1641195056485,1.48824109,3804.7,3804.4,1.45112609]
[1641195056784,1.48824109,3804.7,3804.5,0.229991]
[1641195057584,1.48824109,3804.7,3804.4,0.88907884]
[1641195057785,1.48824109,3804.7,3804.5,0.229991]
[1641195058585,1.48824109,3804.7,3804.5,0.79184306]
[1641195059285,2.33077899,3804.9,3804.5,0.79184306]
[1641195059286,1.48824109,3804.8,3804.6,0.88907884]
[1641195059686,1.48824109,3804.8,3804.6,1.11906984]
[1641195060287,1.48824109,3804.8,3804.6,0.88907884]
[1641195060488,1.48824109,3804.8,3804.6,1.11906984]
[1641195060687,1.48824109,3804.8,3804.6,0.88907884]
[1641195061788,1.48824109,3804.8,3804.7,0.229991]
[1641195061989,1.48824109,3804.8,3804.6,0.88907884]
[1641195062890,1.48824109,3804.8,3804.3,3.19022845]
[1641195062891,0.55843384,3804.9,3804.5,0.88907884]
[1641195064195,2.04667493,3805.1,3804.4,0.88907884]
[1641195064594,2.04667493,3805.1,3804.6,0.56167993]
[1641195065193,2.04667493,3805.1,3804.5,1.45075877]
[1641195065594,2.04667493,3805.1,3804.6,0.56167993]
[1641195065995,0.55843384,3805.1,3804.6,0.56167993]
[1641195066696,0.55843384,3805.1,3804.6,1.29777993]
[1641195066895,0.55843384,3805.1,3804.6,2.18685877]
[1641195067797,3.81902008,3805.5,3804.9,0.88907884]
[1641195067997,2.04667493,3805.5,3804.9,0.88907884]
[1641195068399,2.04667493,3805.5,3804.9,2.89386884]
[1641195068400,0.128157,3805.4,3804.9,2.89386884]
[1641195068797,2.04667493,3805.5,3804.9,2.89386884]
[1641195068997,0.55843384,3805.4,3804.9,2.00479]
[1641195069697,2.04667493,3805.5,3804.9,2.89386884]
[1641195070298,2.04667493,3805.5,3804.9,3.75766868]
[1641195071199,2.04667493,3805.5,3805.0,0.63778386]
[1641195072101,0.55843384,3805.6,3805.1,0.88907884]
[1641195072302,0.55843384,3805.6,3805.5,2.00479]
[1641195072504,0.55843384,3805.6,3805.5,2.234781]
[1641195073103,1.48824109,3805.8,3805.5,2.234781]
[1641195073703,1.48824109,3805.8,3805.5,2.00479]
[1641195073903,1.48824109,3805.7,3805.5,2.00479]
[1641195074104,1.48824109,3805.7,3805.5,2.234781]
[1641195074302,1.48824109,3805.7,3805.5,2.00479]
[1641195074503,1.48824109,3805.8,3805.5,2.00479]
[1641195075207,1.48824109,3805.8,3805.6,0.229991]
[1641195076807,1.48824109,3805.8,3805.5,4.00958]
[1641195077007,1.48824109,3805.8,3805.6,0.229991]
[1641195077207,1.48824109,3805.8,3805.5,4.00958]
[1641195077407,1.48824109,3805.8,3805.5,5.27572164]
[1641195077809,2.04667493,3805.9,3805.6,0.229991]
[1641195078008,2.04667493,3805.9,3805.5,5.27572164]
[1641195081014,1.48824109,3806.0,3805.5,5.27572164]
[1641195081213,1.48824109,3806.0,3805.5,5.94342164]
[1641195082415,1.48824109,3806.0,3805.9,2.00479]
[1641195082714,0.88886349,3806.0,3805.9,2.234781]
[1641195083917,0.88886349,3806.1,3805.9,2.234781]
[1641195084720,0.88886349,3806.2,3805.9,2.234781]
[1641195087921,0.88886349,3806.3,3805.9,2.234781]
[1641195088125,0.88886349,3806.3,3806.0,1.2433832]
[1641195088522,0.88886349,3806.3,3806.1,0.229991]
[1641195089125,0.88886349,3806.4,3806.1,0.229991]
[1641195089322,0.88886349,3806.4,3806.0,1.2433832]
[1641195090627,0.88886349,3806.3,3806.0,1.2433832]
[1641195091228,0.88886349,3806.2,3806.0,1.2433832]
[1641195092224,0.88886349,3806.2,3806.0,1.4733742]
[1641195092425,0.88886349,3806.2,3806.0,1.2433832]
[1641195093231,0.88886349,3806.3,3806.0,1.2433832]
[1641195094230,0.88886349,3806.4,3806.1,0.229991]
[1641195094929,0.88886349,3806.3,3806.0,1.2433832]
[1641195098130,0.88886349,3806.3,3806.1,0.229991]
[1641195098334,0.88886349,3806.3,3806.0,1.2433832]
[1641195099032,0.88886349,3806.3,3806.1,0.229991]
[1641195100132,1.4470445,3806.4,3806.1,0.229991]
[1641195100336,0.88886349,3806.4,3806.1,0.229991]
[1641195100736,1.01702049,3806.4,3806.0,5.25484809]
[1641195100938,1.01702049,3806.4,3805.9,2.00479]
[1641195101136,1.57102049,3806.4,3805.9,2.00479]
[1641195102639,3.57581049,3806.4,3805.5,2.00479]
[1641195103340,0.88886349,3806.2,3805.5,2.00479]
[1641195104542,2.38876349,3806.2,3805.5,2.00479]
[1641195104940,1.4999,3806.0,3805.5,2.00479]
[1641195105142,0.88886349,3806.2,3805.5,2.00479]
[1641195105340,0.88886349,3805.8,3805.5,2.00479]
[1641195106545,0.88886349,3805.7,3805.5,2.00479]
[1641195106943,0.88886349,3805.7,3805.6,0.229991]
[1641195107142,0.88886349,3805.7,3805.5,2.00479]
[1641195107945,0.88886349,3805.7,3805.6,0.229991]
[1641195108146,0.88886349,3805.8,3805.5,6.95601268]
[1641195108844,0.88886349,3805.8,3805.6,0.229991]
[1641195109047,0.88886349,3806.0,3805.6,0.229991]
[1641195109447,0.88886349,3806.0,3805.5,6.95601268]
[1641195112650,0.88886349,3806.0,3805.5,2.00479]
[1641195114157,0.88886349,3805.9,3805.5,2.00479]
[1641195122966,0.55818101,3806.0,3805.5,2.00479]
[1641195123167,1.48824109,3805.9,3805.7,0.88907884]
[1641195123968,1.48824109,3805.9,3805.5,2.00479]
[1641195123969,1.48824109,3805.9,3805.8,0.88907884]
[1641195124968,1.48824109,3805.9,3805.7,0.88650366]
[1641195125172,3.31813423,3805.8,3805.4,1.18543845]
[1641195126472,1.48824109,3805.6,3805.4,1.18543845]
[1641195126676,1.48824109,3805.6,3805.2,1.18543845]
[1641195126872,0.128157,3805.5,3805.1,1.87632845]
[1641195127273,0.128157,3805.5,3805.2,0.6381436]
[1641195127474,1.61639809,3805.5,3805.2,0.6381436]
[1641195128377,0.55818101,3805.4,3805.2,0.6381436]
[1641195134284,0.55818101,3805.4,3805.2,0.8681346]
[1641195134683,0.55818101,3805.4,3805.2,0.6381436]
[1641195137386,0.55818101,3805.4,3805.2,1.82094332]
[1641195137788,0.55818101,3805.4,3805.3,0.6381436]
[1641195138886,1.7484448,3805.4,3805.3,0.6381436]
[1641195140289,1.7484448,3805.4,3805.2,0.6381436]
[1641195140689,1.7484448,3805.4,3805.3,0.6381436]
[1641195140990,1.7484448,3805.4,3805.1,1.18279972]
[1641195140991,1.7484448,3805.4,3805.2,0.6381436]
[1641195141591,1.7484448,3805.4,3805.3,0.6381436]
[1641195142491,1.7484448,3805.4,3805.2,1.82094332]
[1641195142891,1.7484448,3805.4,3805.3,0.6381436]
[1641195143093,0.55818101,3805.4,3805.3,0.6381436]
[1641195143291,0.55818101,3805.4,3805.3,0.8681346]
[1641195143693,0.55818101,3805.4,3805.3,0.229991]
[1641195143892,0.55818101,3805.4,3805.2,0.6381436]
[1641195144694,1.19041616,3805.3,3805.2,0.6381436]
[1641195146493,1.19041616,3805.3,3805.2,0.8681346]
[1641195146894,1.19041616,3805.3,3805.2,0.6381436]
[1641195148193,1.19041616,3805.3,3805.2,0.8681346]
[1641195148994,1.19041616,3805.3,3805.2,0.6381436]
[1641195149196,1.19041616,3805.3,3805.2,0.8681346]
[1641195149998,1.74859717,3805.4,3805.2,2.05093432]
[1641195150396,1.74859717,3805.4,3805.3,0.6381436]
[1641195150801,1.48824109,3805.6,3805.3,0.6381436]
[1641195150999,1.48824109,3805.6,3805.4,0.229991]
[1641195151400,2.0464221,3805.6,3805.4,0.88592139]
[1641195151601,2.0464221,3805.6,3805.4,1.52406499]
[1641195151902,2.0464221,3805.6,3805.4,0.88592139]
[1641195152303,2.0464221,3805.6,3805.4,1.11591239]
[1641195152506,2.0464221,3805.6,3805.4,0.88592139]
[1641195153303,1.48824109,3805.5,3805.4,0.88592139]
[1641195154108,1.48824109,3805.5,3805.4,1.51840379]
[1641195154709,1.48824109,3805.5,3805.4,0.88592139]
[1641195154910,0.55818101,3805.5,3805.4,0.88592139]
[1641195155212,0.55818101,3805.5,3805.4,1.51840379]
[1641195155410,0.55818101,3805.5,3805.4,0.6324824]
[1641195155611,0.55818101,3805.6,3805.4,0.229991]
[1641195155812,0.55818101,3805.6,3805.4,0.8624734]
[1641195156213,0.55818101,3805.6,3805.4,0.229991]
[1641195156713,0.55818101,3805.6,3805.5,0.6324824]
[1641195156913,1.48824109,3805.6,3805.5,1.51850081]
[1641195157213,1.48824109,3805.6,3805.5,0.88601841]
[1641195157613,1.48824109,3805.6,3805.5,1.51850081]
[1641195158718,1.48824109,3805.6,3805.5,0.6324824]
[1641195158917,1.48824109,3805.7,3805.5,0.6324824]
[1641195159117,1.48824109,3805.7,3805.3,1.81528212]
[1641195159617,1.48824109,3805.7,3805.4,0.6324824]
[1641195160421,1.48824109,3805.6,3805.5,1.11598393]
[1641195160619,1.48824109,3805.6,3805.5,0.88599293]
[1641195161019,1.48824109,3805.6,3805.5,1.51847533]
[1641195161319,1.48824109,3805.6,3805.5,1.74846633]
[1641195161620,1.48824109,3805.6,3805.5,1.51847533]
[1641195162419,1.48824109,3805.6,3805.5,0.88599293]
[1641195162619,1.48824109,3805.6,3805.4,0.88599293]
[1641195163023,1.48824109,3805.6,3805.4,1.11598393]
[1641195163324,1.48824109,3805.6,3805.5,0.63270883]
[1641195164622,1.48824109,3805.6,3805.5,1.51870176]
[1641195165625,1.48824109,3805.6,3805.5,0.63270883]
[1641195166023,1.48824109,3805.6,3805.4,0.88599293]
[1641195166223,0.6857,3805.7,3805.4,0.88599293]
[1641195168027,1.48839342,3805.5,3805.4,0.88599293]
[1641195168230,1.48839342,3805.5,3805.4,1.11598393]
[1641195168527,1.48839342,3805.5,3805.4,1.74001071]
[1641195169529,1.48839342,3805.5,3805.4,1.51001971]
[1641195170132,1.48839342,3805.5,3805.4,1.74001071]
[1641195170531,1.48839342,3805.5,3805.4,1.51001971]
[1641195171331,1.48839342,3805.5,3805.4,1.74001071]
[1641195172630,1.48839342,3805.5,3805.4,1.51001971]
[1641195174134,1.48839342,3805.5,3805.4,1.74001071]
[1641195174734,1.48839342,3805.5,3805.4,1.51001971]
[1641195175134,1.48839342,3805.5,3805.4,1.74001071]
[1641195175336,1.48839342,3805.6,3805.4,0.85401778]
[1641195175537,1.48839342,3805.6,3805.4,0.62402678]
[1641195176136,1.48839342,3805.6,3805.4,1.45602678]
[1641195176536,1.48839342,3805.7,3805.5,0.229991]
[1641195176736,1.48839342,3805.7,3805.5,0.85401778]
[1641195177339,1.48839342,3805.7,3805.6,0.88580449]
[1641195177939,1.48839342,3805.7,3805.6,1.50983127]
[1641195180042,1.48839342,3805.7,3805.6,0.62402678]
[1641195180241,0.55818101,3805.8,3805.6,0.62402678]
[1641195180242,4.05136443,3805.8,3805.6,0.62402678]
[1641195180541,4.05136443,3805.8,3805.7,0.229991]
[1641195180742,4.05136443,3805.8,3805.5,0.62402678]
[1641195180942,0.55818101,3805.7,3805.6,0.88540522]
[1641195181440,0.55818101,3805.7,3805.6,1.11539622]
[1641195181642,0.55818101,3805.7,3805.6,0.88540522]
[1641195181841,0.55818101,3805.7,3805.6,1.509432]
[1641195182444,0.55818101,3805.7,3805.6,1.739423]
[1641195183647,0.55818101,3805.7,3805.6,1.509432]
[1641195186248,0.55818101,3805.7,3805.6,1.739423]
[1641195187149,0.55818101,3805.7,3805.6,1.509432]
[1641195189753,0.55818101,3805.7,3805.6,0.62402678]
[1641195193059,0.55818101,3805.7,3805.6,0.85401778]
[1641195194357,0.55818101,3805.7,3805.6,0.62402678]
[1641195200163,0.55818101,3805.7,3805.6,0.85401778]
[1641195201163,0.55818101,3805.7,3805.6,0.62402678]
[1641195201865,0.55818101,3805.7,3805.6,0.85401778]
[1641195202063,0.55818101,3805.7,3805.6,0.62402678]
[1641195202764,0.55818101,3805.7,3805.6,0.85401778]
[1641195203165,0.55818101,3805.7,3805.6,0.62402678]
[1641195204968,0.55818101,3805.7,3805.6,0.85401778]
[1641195205168,1.48839342,3805.8,3805.6,0.85401778]
[1641195205470,1.48839342,3805.8,3805.6,0.62402678]
[1641195205869,1.48839342,3805.8,3805.7,0.229991]
[1641195206069,1.48839342,3805.8,3805.6,1.509432]
[1641195206269,1.48839342,3805.8,3805.6,0.88540522]
[1641195206869,1.61655042,3805.9,3805.6,0.88540522]
[1641195208069,2.04657443,3805.8,3805.5,0.88540522]
[1641195208469,2.04657443,3805.8,3805.6,0.62385305]
[1641195209073,2.04657443,3805.8,3805.6,0.85384405]
[1641195209271,2.04657443,3805.8,3805.6,0.62385305]
[1641195209777,2.04657443,3805.8,3805.6,1.50925827]
[1641195210474,2.04657443,3805.8,3805.6,0.88540522]
[1641195210675,2.04657443,3805.8,3805.5,0.88540522]
[1641195211075,2.04657443,3805.8,3805.6,0.62387724]
[1641195212077,0.55818101,3805.8,3805.6,0.62387724]
[1641195212578,0.55818101,3805.8,3805.4,0.62387724]
[1641195212777,0.55818101,3805.8,3805.3,0.88540522]
[1641195213177,0.55818101,3805.8,3805.5,0.62388376]
[1641195213577,0.55818101,3805.8,3805.4,0.62388376]
[1641195213877,0.55818101,3805.8,3805.6,0.62388376]
[1641195214076,0.55818101,3805.8,3805.6,0.85387476]
[1641195214276,0.55818101,3805.8,3805.5,0.62388376]
[1641195214677,0.55818101,3805.8,3805.4,0.88540522]
[1641195214979,0.55818101,3805.8,3805.5,0.62385709]
[1641195215879,0.55818101,3805.8,3805.4,0.62385709]
[1641195216179,0.55818101,3805.8,3805.6,0.62385709]
[1641195217984,0.55818101,3805.8,3805.5,0.62385709]
[1641195218184,0.55818101,3805.8,3805.6,0.229991]
[1641195218385,0.55818101,3805.8,3805.4,0.88540522]
[1641195218584,0.55818101,3805.8,3805.6,0.62385641]
[1641195218985,0.55818101,3805.8,3805.5,0.62385641]
[1641195219485,0.55818101,3805.8,3805.4,0.88540522]
[1641195219885,0.55818101,3805.8,3805.5,1.50928108]
[1641195220285,0.55818101,3805.8,3805.6,0.229991]
[1641195220485,0.55818101,3805.8,3805.6,0.62387586]
[1641195220689,0.128157,3805.9,3805.6,0.62387586]
[1641195221288,0.128157,3805.9,3805.5,0.62387586]
[1641195221686,0.128157,3805.9,3805.4,0.88540522]
[1641195221887,0.128157,3805.9,3805.5,0.88540522]
[1641195221888,0.55818101,3805.8,3805.5,0.88540522]
[1641195222088,0.55818101,3805.8,3805.6,0.62388103]
[1641195222989,0.55818101,3805.8,3805.7,0.229991]
[1641195223592,0.55818101,3805.8,3805.6,0.62388103]
[1641195224189,0.55818101,3806.0,3805.6,0.62388103]
[1641195229598,2.33052616,3806.0,3805.6,0.62388103]
[1641195230199,2.33052616,3806.0,3805.5,0.62388103]
[1641195230400,2.33052616,3806.0,3805.4,0.88540522]
[1641195230800,2.33052616,3806.0,3805.6,0.63149718]
[1641195231201,2.33052616,3806.0,3805.4,0.88540522]
[1641195231202,2.33052616,3806.0,3805.5,0.63149718]
[1641195231399,2.33052616,3806.0,3805.4,0.88540522]
[1641195231901,2.33052616,3806.0,3805.3,0.88540522]
[1641195232200,1.48745519,3805.6,3805.5,0.65349936]
[1641195232601,1.48745519,3805.6,3805.4,0.65349936]
[1641195232803,1.48745519,3805.6,3805.5,0.65349936]
[1641195233503,1.48745519,3805.6,3805.4,0.65349936]
[1641195233701,1.48745519,3805.6,3805.5,0.65349936]
[1641195234304,1.48745519,3805.7,3805.4,1.53890458]
[1641195234702,1.48745519,3805.7,3805.5,0.65349936]
[1641195235812,2.00479,3805.6,3805.5,0.65349936]
[1641195236006,2.00479,3805.6,3805.5,0.88349036]
[1641195236205,2.00479,3805.6,3805.5,0.65349936]
[1641195237110,2.56297101,3805.6,3805.5,0.65349936]
[1641195238112,2.56297101,3805.6,3805.5,0.88349036]
[1641195239013,0.55818101,3805.6,3805.5,0.65349936]
[1641195239415,0.55818101,3805.6,3805.5,0.88349036]
[1641195239614,0.55818101,3805.6,3805.5,1.76889558]
[1641195240316,0.55818101,3805.6,3805.5,0.88349036]
[1641195240517,1.48745519,3805.7,3805.5,0.88349036]
[1641195240716,1.48745519,3805.7,3805.5,0.788391]
[1641195241617,1.48745519,3805.7,3805.6,0.65349936]
[1641195243722,1.48745519,3805.8,3805.6,1.5386459]
[1641195244422,2.0456362,3805.9,3805.6,1.7686369]
[1641195244622,2.0456362,3805.9,3805.7,0.65349936]
[1641195245624,2.0456362,3805.9,3805.7,0.88349036]
[1641195246325,2.0456362,3805.9,3805.7,0.65349936]
[1641195249232,2.0456362,3805.9,3805.8,0.229991]
[1641195249429,2.0456362,3805.9,3805.7,0.65349936]
[1641195250030,2.0456362,3805.9,3805.8,0.229991]
[1641195251234,2.0456362,3805.9,3805.7,0.65349936]
[1641195252333,2.0456362,3805.9,3805.8,0.229991]
[1641195252533,2.0456362,3805.9,3805.7,0.65349936]
[1641195253338,1.77234515,3806.2,3805.8,0.352347]
[1641195253943,1.6267352,3806.5,3806.0,1.5]
[1641195254139,6.07341425,3807.4,3806.4,3.50479]
[1641195254342,2.23075793,3806.8,3806.6,1.5]
[1641195254541,2.23075793,3806.8,3806.7,1.852347]
[1641195254738,1.44275793,3806.8,3806.7,7.10622105]
[1641195255140,1.44275793,3806.8,3806.7,7.75972041]
[1641195255340,1.44275793,3806.8,3806.7,6.25972041]
[1641195256040,5.70355748,3807.4,3806.7,6.25972041]
[1641195256241,2.00479,3807.4,3806.7,7.44252013]
[1641195256440,2.00479,3807.4,3806.8,0.65349936]
[1641195257939,2.00479,3807.4,3807.1,0.88273177]
[1641195258141,2.00479,3807.4,3807.2,0.229991]
[1641195258341,2.00479,3807.4,3807.2,0.855291]
[1641195258845,2.00479,3807.4,3807.3,0.88273177]
[1641195260649,2.00479,3807.4,3807.2,0.855291]
[1641195261949,2.00479,3807.4,3807.2,2.03809072]
[1641195263351,3.49147808,3807.8,3807.2,2.03809072]
[1641195263750,1.48668808,3807.8,3807.2,2.03809072]
[1641195264352,1.48668808,3807.8,3807.4,2.00479]
[1641195264554,1.48668808,3807.9,3807.5,0.88209601]
[1641195266254,1.48668808,3807.8,3807.5,0.88209601]
[1641195267457,1.48668808,3807.9,3807.6,0.88209601]
[1641195268255,1.48668808,3807.8,3807.7,0.229991]
[1641195268555,1.48668808,3807.8,3807.5,0.88209601]
[1641195269155,1.48668808,3807.8,3807.6,0.229991]
[1641195269454,1.48668808,3807.8,3807.5,0.88209601]
[1641195269654,1.18934497,3807.6,3807.5,0.88209601]
[1641195269954,1.18934497,3807.6,3807.5,1.11208701]
[1641195270358,1.18934497,3807.6,3807.4,2.00479]
[1641195270956,1.18934497,3807.6,3807.5,0.229991]
[1641195271856,1.18934497,3807.7,3807.5,0.229991]
[1641195272255,1.18934497,3807.7,3807.4,2.00479]
[1641195272455,1.18934497,3807.7,3807.5,0.229991]
[1641195272657,1.18934497,3807.7,3807.4,3.18758972]
[1641195273260,1.18934497,3807.7,3807.6,0.88211875]
[1641195274960,1.18934497,3807.7,3806.8,3.76915614]
[1641195275161,0.7477,3807.7,3806.8,2.00479]
[1641195276260,1.48668808,3807.9,3806.8,2.00479]
[1641195276461,2.00479,3807.3,3806.7,16.295]
[1641195276661,2.00479,3807.3,3806.5,16.724156]
[1641195276862,2.00479,3807.3,3806.5,0.122356]
[1641195277262,2.00479,3807.3,3806.4,5.08151277]
[1641195277662,2.00479,3807.3,3806.4,3.31714663]
[1641195278365,2.00479,3807.3,3806.6,2.81755886]
[1641195278765,2.00479,3807.3,3806.8,2.81690645]
[1641195280565,0.128157,3807.4,3806.8,4.82169645]
[1641195280764,2.00479,3807.7,3806.8,4.82169645]
[1641195282167,2.00479,3807.7,3806.8,6.32169645]
[1641195282567,0.128157,3807.6,3806.8,6.32169645]
[1641195284069,2.00479,3807.7,3806.8,6.32169645]
[1641195284469,2.00479,3807.7,3806.8,4.82169645]
[1641195284670,0.128157,3807.6,3806.8,4.82169645]
[1641195287183,2.00479,3807.7,3806.8,4.82169645]